[Event "Live Chess"]
[Site "Chess.com"]
[Date "2023.05.21"]
[Round "-"]
[White "KeithArkell"]
[Black "ChessTWSS"]
[Result "1-0"]
[WhiteElo "2508"]
[BlackElo "1560"]
[TimeControl "300"]
[EndTime "1:53:18 PDT"]
[Termination "KeithArkell won by checkmate"]

1. d4 {[%clk 0:04:55.8]} 1... d5 {[%clk 0:04:51.9]} 2. Nf3 {[%clk 0:04:55]} 2...
Nf6 {[%clk 0:04:46.8]} 3. c4 {[%clk 0:04:54.1]} 3... c6 {[%clk 0:04:39.6]} 4.
Nc3 {[%clk 0:04:52.4]} 4... e6 {[%clk 0:04:33.9]} 5. cxd5 {[%clk 0:04:51.2]}
5... exd5 {[%clk 0:04:29.8]} 6. Qc2 {[%clk 0:04:49.6]} 6... Bd6 {[%clk
0:04:24.8]} 7. Bg5 {[%clk 0:04:45.2]} 7... h6 {[%clk 0:04:16.2]} 8. Bxf6 {[%clk
0:04:44.4]} 8... Qxf6 {[%clk 0:04:11.7]} 9. Nxd5 {[%clk 0:04:43.6]} 9... Qe6
{[%clk 0:04:05.2]} 10. Nc3 {[%clk 0:04:39.2]} 10... Nd7 {[%clk 0:03:59.6]} 11.
Qe4 {[%clk 0:04:35]} 11... Qxe4 {[%clk 0:03:52.5]} 12. Nxe4 {[%clk 0:04:33.7]}
12... Bb4+ {[%clk 0:03:45.7]} 13. Nc3 {[%clk 0:04:32.8]} 13... Bxc3+ {[%clk
0:03:38.5]} 14. bxc3 {[%clk 0:04:28.5]} 14... Nf6 {[%clk 0:03:29.1]} 15. e3
{[%clk 0:04:27.6]} 15... Bg4 {[%clk 0:03:23.5]} 16. Be2 {[%clk 0:04:26.4]} 16...
Bxf3 {[%clk 0:03:19.7]} 17. Bxf3 {[%clk 0:04:25.2]} 17... O-O {[%clk 0:03:11.7]}
18. Rb1 {[%clk 0:04:24.1]} 18... g5 {[%clk 0:03:05.5]} 19. h3 {[%clk 0:04:22.7]}
19... b5 {[%clk 0:02:58.9]} 20. Bxc6 {[%clk 0:04:20.8]} 20... Rac8 {[%clk
0:02:52.5]} 21. Bxb5 {[%clk 0:04:19.7]} 21... Rxc3 {[%clk 0:02:47.9]} 22. O-O
{[%clk 0:04:16.5]} 22... Rc2 {[%clk 0:02:37.4]} 23. a4 {[%clk 0:04:13]} 23...
Rfc8 {[%clk 0:02:32.6]} 24. Bd3 {[%clk 0:04:09.3]} 24... R2c3 {[%clk 0:02:24.4]}
25. Bf5 {[%clk 0:04:06.8]} 25... R8c7 {[%clk 0:02:18.7]} 26. Rb2 {[%clk
0:04:04.4]} 26... Ra3 {[%clk 0:02:09.1]} 27. Rb4 {[%clk 0:04:00.9]} 27... a5
{[%clk 0:02:03.6]} 28. Rb6 {[%clk 0:04:00]} 28... Nd7 {[%clk 0:01:50.3]} 29.
Bxd7 {[%clk 0:03:57.1]} 29... Rxd7 {[%clk 0:01:46.9]} 30. Rxh6 {[%clk
0:03:56.1]} 30... Rxa4 {[%clk 0:01:40.7]} 31. Ra6 {[%clk 0:03:54.6]} 31... Rc4
{[%clk 0:01:26.7]} 32. Rxa5 {[%clk 0:03:52.6]} 32... Rdc7 {[%clk 0:01:16.6]} 33.
Rxg5+ {[%clk 0:03:51.1]} 33... Kh7 {[%clk 0:01:11.9]} 34. Rc5 {[%clk 0:03:49.4]}
34... R7xc5 {[%clk 0:01:06.4]} 35. dxc5 {[%clk 0:03:48.4]} 35... Rxc5 {[%clk
0:01:04.5]} 36. g4 {[%clk 0:03:47.6]} 36... Kg6 {[%clk 0:01:01.4]} 37. Kg2
{[%clk 0:03:46.9]} 37... f5 {[%clk 0:01:00.5]} 38. Kg3 {[%clk 0:03:46]} 38...
fxg4 {[%clk 0:00:56.7]} 39. hxg4 {[%clk 0:03:45.4]} 39... Kg5 {[%clk 0:00:54.7]}
40. Rd1 {[%clk 0:03:43.5]} 40... Re5 {[%clk 0:00:50.4]} 41. f4+ {[%clk
0:03:41.8]} 41... Kf6 {[%clk 0:00:48.5]} 42. fxe5+ {[%clk 0:03:41.2]} 42... Kxe5
{[%clk 0:00:48.4]} 43. g5 {[%clk 0:03:40.4]} 43... Kf5 {[%clk 0:00:47.4]} 44.
Rd5+ {[%clk 0:03:39.6]} 44... Kg6 {[%clk 0:00:46.6]} 45. Kg4 {[%clk 0:03:38.5]}
45... Kg7 {[%clk 0:00:45.1]} 46. Rd6 {[%clk 0:03:37.6]} 46... Kh7 {[%clk
0:00:43.2]} 47. g6+ {[%clk 0:03:36.8]} 47... Kg7 {[%clk 0:00:42.7]} 48. Kg5
{[%clk 0:03:35.8]} 48... Kg8 {[%clk 0:00:41.3]} 49. Kf6 {[%clk 0:03:34.1]} 49...
Kh8 {[%clk 0:00:39.9]} 50. Rd8# {[%clk 0:03:33.6]} 1-0

[Event "Live Chess"]
[Site "Chess.com"]
[Date "2023.05.21"]
[Round "-"]
[White "PrinceCharming_1"]
[Black "wadsy27"]
[Result "0-1"]
[WhiteElo "1614"]
[BlackElo "2569"]
[TimeControl "300"]
[EndTime "1:53:20 PDT"]
[Termination "wadsy27 won by checkmate"]

1. e4 {[%clk 0:04:58.9]} 1... c5 {[%clk 0:04:58.3]} 2. Nf3 {[%clk 0:04:57.6]}
2... e6 {[%clk 0:04:57.7]} 3. d4 {[%clk 0:04:56.7]} 3... cxd4 {[%clk 0:04:57]}
4. Nxd4 {[%clk 0:04:56.6]} 4... Nc6 {[%clk 0:04:56.2]} 5. Nc3 {[%clk 0:04:55.8]}
5... Qc7 {[%clk 0:04:55.7]} 6. Be3 {[%clk 0:04:55.1]} 6... a6 {[%clk 0:04:54.6]}
7. Qd2 {[%clk 0:04:54.3]} 7... Nf6 {[%clk 0:04:52.4]} 8. Bd3 {[%clk 0:04:53.4]}
8... Be7 {[%clk 0:04:49.3]} 9. O-O-O {[%clk 0:04:52.2]} 9... O-O {[%clk
0:04:48.3]} 10. h4 {[%clk 0:04:51.5]} 10... b5 {[%clk 0:04:46.8]} 11. h5 {[%clk
0:04:49.1]} 11... Ng4 {[%clk 0:04:36.1]} 12. h6 {[%clk 0:04:44]} 12... g6 {[%clk
0:04:34.5]} 13. Bg5 {[%clk 0:04:40.6]} 13... f6 {[%clk 0:04:26.7]} 14. Be3
{[%clk 0:04:38.7]} 14... Nxe3 {[%clk 0:04:22.3]} 15. fxe3 {[%clk 0:04:38.6]}
15... Ne5 {[%clk 0:04:17.5]} 16. Nf3 {[%clk 0:04:11.9]} 16... Bb7 {[%clk
0:04:13.5]} 17. Nxe5 {[%clk 0:04:10]} 17... Qxe5 {[%clk 0:04:12.5]} 18. a3
{[%clk 0:04:06.1]} 18... b4 {[%clk 0:04:09.8]} 19. Na4 {[%clk 0:03:47.6]} 19...
bxa3 {[%clk 0:04:06.9]} 20. c3 {[%clk 0:03:44.7]} 20... a2 {[%clk 0:04:04.9]}
21. Nb6 {[%clk 0:03:37.6]} 21... a1=Q+ {[%clk 0:04:02.7]} 22. Bb1 {[%clk
0:03:37.2]} 22... Bxe4 {[%clk 0:04:00.2]} 23. Qd3 {[%clk 0:03:31]} 23... Bxd3
{[%clk 0:03:57.1]} 24. Rxd3 {[%clk 0:03:30.9]} 24... Bc5 {[%clk 0:03:53.3]} 25.
Nxd7 {[%clk 0:03:28.4]} 25... Bxe3+ {[%clk 0:03:51.7]} 26. Kc2 {[%clk 0:03:27]}
26... Qe4 {[%clk 0:03:47.4]} 27. Nxf8 {[%clk 0:03:24.4]} 27... Qxg2+ {[%clk
0:03:45]} 28. Kb3 {[%clk 0:03:19.6]} 28... Qxh1 {[%clk 0:03:43.6]} 29. Rd7
{[%clk 0:03:08]} 29... Rb8+ {[%clk 0:03:41.1]} 30. Kc2 {[%clk 0:03:06.7]} 30...
Qaxb1# {[%clk 0:03:38.8]} 0-1

[Event "Live Chess"]
[Site "Chess.com"]
[Date "2023.05.21"]
[Round "-"]
[White "Cimon"]
[Black "OleksiyJr1"]
[Result "1-0"]
[WhiteElo "1841"]
[BlackElo "978"]
[TimeControl "300"]
[EndTime "1:53:26 PDT"]
[Termination "Cimon won by checkmate"]

1. Nf3 {[%clk 0:04:58]} 1... d5 {[%clk 0:04:53.5]} 2. d4 {[%clk 0:04:56.6]} 2...
Nf6 {[%clk 0:04:51.5]} 3. c4 {[%clk 0:04:55.4]} 3... c6 {[%clk 0:04:49.3]} 4.
Nc3 {[%clk 0:04:52]} 4... e6 {[%clk 0:04:47]} 5. g3 {[%clk 0:04:50.2]} 5... Nbd7
{[%clk 0:04:46.5]} 6. Bg2 {[%clk 0:04:48.5]} 6... a6 {[%clk 0:04:43.1]} 7. cxd5
{[%clk 0:04:46.5]} 7... Nxd5 {[%clk 0:04:40.6]} 8. O-O {[%clk 0:04:43.5]} 8...
N7b6 {[%clk 0:04:38.8]} 9. e4 {[%clk 0:04:38.8]} 9... Nxc3 {[%clk 0:04:29.8]}
10. bxc3 {[%clk 0:04:37.3]} 10... c5 {[%clk 0:04:09.7]} 11. Qb3 {[%clk
0:04:28.2]} 11... cxd4 {[%clk 0:03:58.6]} 12. cxd4 {[%clk 0:04:26.2]} 12... Bd6
{[%clk 0:03:41.6]} 13. Be3 {[%clk 0:04:06.1]} 13... Bd7 {[%clk 0:03:26]} 14.
Rab1 {[%clk 0:03:52.9]} 14... Bc7 {[%clk 0:03:20.5]} 15. d5 {[%clk 0:03:44.4]}
15... exd5 {[%clk 0:03:10.3]} 16. exd5 {[%clk 0:03:40.9]} 16... Bb5 {[%clk
0:03:03.8]} 17. Rfd1 {[%clk 0:03:25.3]} 17... O-O {[%clk 0:02:49.8]} 18. Qb4
{[%clk 0:02:54.3]} 18... Qd6 {[%clk 0:02:45.1]} 19. Bc5 {[%clk 0:02:50.2]} 19...
Qd8 {[%clk 0:02:34.5]} 20. d6 {[%clk 0:02:40.8]} 20... Bb8 {[%clk 0:02:23.3]}
21. Qd4 {[%clk 0:02:27.8]} 21... Ba7 {[%clk 0:02:05.2]} 22. a4 {[%clk
0:02:11.5]} 22... Be2 {[%clk 0:02:01.6]} 23. Rd2 {[%clk 0:01:57.3]} 23... Bxf3
{[%clk 0:01:59.3]} 24. Bxf3 {[%clk 0:01:55]} 24... a5 {[%clk 0:01:57.9]} 25.
Bxb6 {[%clk 0:01:52.4]} 25... Bxb6 {[%clk 0:01:56.2]} 26. Qxb6 {[%clk
0:01:50.8]} 26... Qxb6 {[%clk 0:01:54.4]} 27. Rxb6 {[%clk 0:01:49.3]} 27... Rab8
{[%clk 0:01:53.8]} 28. Rxb7 {[%clk 0:01:46.5]} 28... Rxb7 {[%clk 0:01:53.5]} 29.
Bxb7 {[%clk 0:01:45.2]} 29... Rd8 {[%clk 0:01:52.4]} 30. Bc6 {[%clk 0:01:41]}
30... f6 {[%clk 0:01:50.6]} 31. d7 {[%clk 0:01:39]} 31... Kf8 {[%clk 0:01:49]}
32. Bb5 {[%clk 0:01:37.4]} 32... Ke7 {[%clk 0:01:47.8]} 33. Kf1 {[%clk
0:01:35.6]} 33... g6 {[%clk 0:01:44.8]} 34. Rd4 {[%clk 0:01:32.8]} 34... f5
{[%clk 0:01:44.1]} 35. Ke2 {[%clk 0:01:31.6]} 35... Ke6 {[%clk 0:01:42.3]} 36.
f4 {[%clk 0:01:28.4]} 36... Ke7 {[%clk 0:01:40.7]} 37. Kd3 {[%clk 0:01:26.8]}
37... Kf6 {[%clk 0:01:38.1]} 38. Rd6+ {[%clk 0:01:24.4]} 38... Ke7 {[%clk
0:01:36.3]} 39. Ra6 {[%clk 0:01:23.1]} 39... Rxd7+ {[%clk 0:01:29.5]} 40. Bxd7
{[%clk 0:01:21.3]} 40... Kxd7 {[%clk 0:01:29.4]} 41. Ra7+ {[%clk 0:01:20.3]}
41... Kc6 {[%clk 0:01:27.4]} 42. Rxa5 {[%clk 0:01:18.3]} 42... Kb6 {[%clk
0:01:26.4]} 43. Ra8 {[%clk 0:01:17.1]} 43... Kc5 {[%clk 0:01:25.3]} 44. Kc3
{[%clk 0:01:13.9]} 44... Kd5 {[%clk 0:01:22.8]} 45. Re8 {[%clk 0:01:12.4]} 45...
Kc6 {[%clk 0:01:20.2]} 46. Kc4 {[%clk 0:01:11.1]} 46... Kd7 {[%clk 0:01:19.3]}
47. Rh8 {[%clk 0:01:08.9]} 47... Kc6 {[%clk 0:01:16]} 48. Rxh7 {[%clk
0:01:07.2]} 48... Kb6 {[%clk 0:01:14]} 49. Kb4 {[%clk 0:01:06.3]} 49... Kc6
{[%clk 0:01:13.2]} 50. Rh6 {[%clk 0:01:04.9]} 50... Kd5 {[%clk 0:01:13.1]} 51.
Rxg6 {[%clk 0:01:03.4]} 51... Ke4 {[%clk 0:01:13]} 52. h4 {[%clk 0:01:01.9]}
52... Kf3 {[%clk 0:01:12.9]} 53. h5 {[%clk 0:01:00.8]} 53... Kg2 {[%clk
0:01:11.4]} 54. h6 {[%clk 0:00:59.6]} 54... Kh3 {[%clk 0:01:11.3]} 55. h7 {[%clk
0:00:58.3]} 55... Kg2 {[%clk 0:01:11.2]} 56. h8=Q {[%clk 0:00:56.1]} 56... Kg1
{[%clk 0:01:11.1]} 57. Qd4+ {[%clk 0:00:52.3]} 57... Kg2 {[%clk 0:01:11]} 58. g4
{[%clk 0:00:50]} 58... Kh3 {[%clk 0:01:08.6]} 59. gxf5 {[%clk 0:00:47]} 59...
Kh4 {[%clk 0:01:07.7]} 60. Qg1 {[%clk 0:00:43.5]} 60... Kh5 {[%clk 0:01:06.9]}
61. Qg5# {[%clk 0:00:41.6]} 1-0

[Event "Live Chess"]
[Site "Chess.com"]
[Date "2023.05.21"]
[Round "-"]
[White "LiamClery2020"]
[Black "CroasArRheun"]
[Result "1-0"]
[WhiteElo "2030"]
[BlackElo "1804"]
[TimeControl "300"]
[EndTime "1:53:26 PDT"]
[Termination "LiamClery2020 won on time"]

1. e4 {[%clk 0:04:57.8]} 1... e5 {[%clk 0:04:59.2]} 2. Nc3 {[%clk 0:04:56.8]}
2... Nf6 {[%clk 0:04:58.2]} 3. f4 {[%clk 0:04:55.7]} 3... d5 {[%clk 0:04:57.2]}
4. fxe5 {[%clk 0:04:55]} 4... Nxe4 {[%clk 0:04:56.3]} 5. Qf3 {[%clk 0:04:54.6]}
5... Nc6 {[%clk 0:04:54.5]} 6. Bb5 {[%clk 0:04:52.2]} 6... Nxc3 {[%clk
0:04:52.1]} 7. dxc3 {[%clk 0:04:52.1]} 7... Qh4+ {[%clk 0:04:50.2]} 8. g3 {[%clk
0:04:49]} 8... Qe4+ {[%clk 0:04:49.2]} 9. Be3 {[%clk 0:04:48.5]} 9... Qxe5
{[%clk 0:04:27.7]} 10. O-O-O {[%clk 0:04:47.1]} 10... Bd6 {[%clk 0:03:59.3]} 11.
Bf4 {[%clk 0:04:35.5]} 11... Qe6 {[%clk 0:03:43.4]} 12. c4 {[%clk 0:04:32.3]}
12... Bxf4+ {[%clk 0:03:34.9]} 13. Qxf4 {[%clk 0:04:28.7]} 13... dxc4 {[%clk
0:03:19.5]} 14. Bxc4 {[%clk 0:04:24.4]} 14... Qe7 {[%clk 0:03:08.8]} 15. Nf3
{[%clk 0:04:22.1]} 15... O-O {[%clk 0:03:06.9]} 16. Rhe1 {[%clk 0:04:21]} 16...
Qc5 {[%clk 0:02:59.7]} 17. Qxf7+ {[%clk 0:04:17.9]} 17... Rxf7 {[%clk
0:02:35.7]} 18. Re8+ {[%clk 0:04:16.6]} 18... Qf8 {[%clk 0:02:35.2]} 19. Rde1
{[%clk 0:04:01.8]} 19... Bg4 {[%clk 0:01:43]} 20. Rxf8+ {[%clk 0:03:56.6]} 20...
Kxf8 {[%clk 0:01:38.6]} 21. Bxf7 {[%clk 0:03:51.2]} 21... Kxf7 {[%clk 0:01:37]}
22. Ng5+ {[%clk 0:03:48.8]} 22... Kg6 {[%clk 0:01:32.7]} 23. h4 {[%clk
0:03:45.1]} 23... h6 {[%clk 0:01:29.4]} 24. Ne6 {[%clk 0:03:41.3]} 24... Bxe6
{[%clk 0:01:22]} 25. Rxe6+ {[%clk 0:03:41.2]} 25... Kf5 {[%clk 0:01:21.1]} 26.
Re3 {[%clk 0:03:36.4]} 26... Rd8 {[%clk 0:01:16.6]} 27. c3 {[%clk 0:03:35]}
27... Kg4 {[%clk 0:01:15.4]} 28. Kc2 {[%clk 0:03:32.8]} 28... Rf8 {[%clk
0:01:13.5]} 29. b4 {[%clk 0:03:30.8]} 29... Rf2+ {[%clk 0:01:11.4]} 30. Kb3
{[%clk 0:03:29.5]} 30... Rf3 {[%clk 0:01:10.4]} 31. Re6 {[%clk 0:03:25.5]} 31...
Kxg3 {[%clk 0:01:07.2]} 32. Rg6+ {[%clk 0:03:24]} 32... Kxh4 {[%clk 0:01:05.9]}
33. Rxg7 {[%clk 0:03:23.9]} 33... Rg3 {[%clk 0:01:02.7]} 34. Rxc7 {[%clk
0:03:23.1]} 34... Kg5 {[%clk 0:00:51.9]} 35. Rxb7 {[%clk 0:03:17.6]} 35... h5
{[%clk 0:00:48.3]} 36. Rc7 {[%clk 0:03:16.5]} 36... Nd4+ {[%clk 0:00:44.1]} 37.
Ka4 {[%clk 0:03:12.3]} 37... Ne6 {[%clk 0:00:28.7]} 38. Rc6 {[%clk 0:03:10.2]}
38... Nf4 {[%clk 0:00:19.3]} 39. Rc5+ {[%clk 0:03:07]} 39... Kg4 {[%clk
0:00:18.5]} 40. Rc7 {[%clk 0:03:06.1]} 40... h4 {[%clk 0:00:17.7]} 41. Rg7+
{[%clk 0:03:05]} 41... Kf3 {[%clk 0:00:16.1]} 42. Rxa7 {[%clk 0:03:04.9]} 42...
h3 {[%clk 0:00:14.7]} 43. Rh7 {[%clk 0:03:04.5]} 43... Rg4 {[%clk 0:00:12.2]}
44. b5 {[%clk 0:03:03.6]} 44... Kg3 {[%clk 0:00:11.2]} 45. b6 {[%clk 0:03:02.1]}
45... h2 {[%clk 0:00:10.7]} 46. b7 {[%clk 0:03:00.6]} 46... Rh4 {[%clk
0:00:09.8]} 47. Rxh4 {[%clk 0:02:57.9]} 47... Kxh4 {[%clk 0:00:09.4]} 48. b8=Q
{[%clk 0:02:57.3]} 48... h1=Q {[%clk 0:00:07.8]} 49. Qxf4+ {[%clk 0:02:56.6]}
49... Kh5 {[%clk 0:00:04.7]} 50. Qf7+ {[%clk 0:02:52.2]} 50... Kg5 {[%clk
0:00:03.2]} 51. Qe7+ {[%clk 0:02:51.1]} 51... Kf5 {[%clk 0:00:02.3]} 52. Qc5+
{[%clk 0:02:49.3]} 52... Kf4 {[%clk 0:00:01.4]} 53. Qf2+ {[%clk 0:02:47]} 1-0

[Event "Live Chess"]
[Site "Chess.com"]
[Date "2023.05.21"]
[Round "-"]
[White "Pablo_dmp"]
[Black "Biranidun"]
[Result "0-1"]
[WhiteElo "1854"]
[BlackElo "2546"]
[TimeControl "300"]
[EndTime "1:53:26 PDT"]
[Termination "Biranidun won by resignation"]

1. e4 {[%clk 0:04:59]} 1... c5 {[%clk 0:04:59.1]} 2. d4 {[%clk 0:04:57.3]} 2...
cxd4 {[%clk 0:04:58.3]} 3. c3 {[%clk 0:04:55.6]} 3... dxc3 {[%clk 0:04:57.7]} 4.
Nxc3 {[%clk 0:04:55.4]} 4... Nc6 {[%clk 0:04:57.1]} 5. Nf3 {[%clk 0:04:53.9]}
5... e6 {[%clk 0:04:56.6]} 6. Bc4 {[%clk 0:04:51]} 6... Bb4 {[%clk 0:04:56.2]}
7. Bg5 {[%clk 0:04:40.1]} 7... Nge7 {[%clk 0:04:53.3]} 8. O-O {[%clk 0:04:33.4]}
8... O-O {[%clk 0:04:51.9]} 9. Nb5 {[%clk 0:04:19.5]} 9... f6 {[%clk 0:04:49.9]}
10. Bf4 {[%clk 0:04:09.3]} 10... Ng6 {[%clk 0:04:45]} 11. Bd6 {[%clk 0:04:05.1]}
11... Bxd6 {[%clk 0:04:42.4]} 12. Qxd6 {[%clk 0:04:02.4]} 12... Qe7 {[%clk
0:04:38.6]} 13. Rfd1 {[%clk 0:03:49.1]} 13... a6 {[%clk 0:04:35.8]} 14. Nc7
{[%clk 0:03:45.8]} 14... Qxd6 {[%clk 0:04:32.1]} 15. Rxd6 {[%clk 0:03:43.6]}
15... Ra7 {[%clk 0:04:31.7]} 16. Rad1 {[%clk 0:03:22.8]} 16... b5 {[%clk
0:04:30]} 17. Bxe6+ {[%clk 0:03:04.4]} 17... dxe6 {[%clk 0:04:23.4]} 18. Rxc6
{[%clk 0:02:59.5]} 18... e5 {[%clk 0:04:17.6]} 19. Nd5 {[%clk 0:02:42.9]} 19...
Bg4 {[%clk 0:03:11.5]} 20. Rc3 {[%clk 0:02:25.7]} 20... Kf7 {[%clk 0:03:05.4]}
21. h3 {[%clk 0:02:23.8]} 21... Be6 {[%clk 0:03:03.3]} 22. Kf1 {[%clk
0:02:06.4]} 22... Rd8 {[%clk 0:03:01.5]} 23. Ke2 {[%clk 0:01:52]} 23... Bxd5
{[%clk 0:03:00.4]} 24. exd5 {[%clk 0:01:51.9]} 24... Nf4+ {[%clk 0:02:58.3]} 25.
Kf1 {[%clk 0:01:46.5]} 25... Nxd5 {[%clk 0:02:57.6]} 26. Rcd3 {[%clk 0:01:44]}
26... Rad7 {[%clk 0:02:55.6]} 27. Ne1 {[%clk 0:01:25.2]} 27... Ke6 {[%clk
0:02:48.1]} 28. Ke2 {[%clk 0:01:19.6]} 28... Nf4+ {[%clk 0:02:46.8]} 0-1

[Event "Live Chess"]
[Site "Chess.com"]
[Date "2023.05.21"]
[Round "-"]
[White "jagbama"]
[Black "Ferrarifan27"]
[Result "0-1"]
[WhiteElo "1164"]
[BlackElo "2094"]
[TimeControl "300"]
[EndTime "1:53:26 PDT"]
[Termination "Ferrarifan27 won by resignation"]

1. e4 {[%clk 0:04:42]} 1... e5 {[%clk 0:04:57.7]} 2. Nf3 {[%clk 0:04:40.4]} 2...
Nc6 {[%clk 0:04:53.7]} 3. Bc4 {[%clk 0:04:39.8]} 3... Nd4 {[%clk 0:04:50.1]} 4.
Nc3 {[%clk 0:04:37.2]} 4... Nxf3+ {[%clk 0:04:42.5]} 5. Qxf3 {[%clk 0:04:35.5]}
5... Nf6 {[%clk 0:04:39.1]} 6. d3 {[%clk 0:04:33.1]} 6... Be7 {[%clk 0:04:35.7]}
7. Bg5 {[%clk 0:04:29.5]} 7... O-O {[%clk 0:04:33.7]} 8. Qg3 {[%clk 0:04:25.7]}
8... Nh5 {[%clk 0:04:25.1]} 9. Bxe7 {[%clk 0:03:53.6]} 9... Nxg3 {[%clk
0:04:19.6]} 10. Bxd8 {[%clk 0:03:51.6]} 10... Nxh1 {[%clk 0:04:18]} 11. Bh4
{[%clk 0:03:40.4]} 11... Kh8 {[%clk 0:04:15.7]} 12. O-O-O {[%clk 0:03:38.1]}
12... g5 {[%clk 0:04:12.5]} 13. Bxg5 {[%clk 0:03:31.8]} 13... Nxf2 {[%clk
0:04:11]} 14. Rf1 {[%clk 0:03:16.5]} 14... Ng4 {[%clk 0:04:09.4]} 15. h3 {[%clk
0:03:13.5]} 15... h6 {[%clk 0:04:02]} 16. hxg4 {[%clk 0:02:52.1]} 16... hxg5
{[%clk 0:04:00.2]} 17. Bxf7 {[%clk 0:02:51.7]} 17... Kg7 {[%clk 0:03:56.5]} 18.
Nd5 {[%clk 0:02:45.2]} 18... Rxf7 {[%clk 0:03:53.1]} 19. Rxf7+ {[%clk
0:02:43.2]} 19... Kxf7 {[%clk 0:03:52]} 20. Nxc7 {[%clk 0:02:43.1]} 20... Rb8
{[%clk 0:03:51]} 21. Kd2 {[%clk 0:02:34.7]} 21... d6 {[%clk 0:03:49.1]} 22. Kc3
{[%clk 0:02:30.4]} 22... Bxg4 {[%clk 0:03:45.4]} 23. g3 {[%clk 0:02:27.4]} 23...
Rc8 {[%clk 0:03:44]} 24. Kb4 {[%clk 0:02:23.3]} 24... Rxc7 {[%clk 0:03:42.4]}
0-1

[Event "Live Chess"]
[Site "Chess.com"]
[Date "2023.05.21"]
[Round "-"]
[White "Long1968"]
[Black "Shepherds_Pie"]
[Result "0-1"]
[WhiteElo "982"]
[BlackElo "1926"]
[TimeControl "300"]
[EndTime "1:53:28 PDT"]
[Termination "Shepherds_Pie won on time"]

1. e4 {[%clk 0:04:56.7]} 1... e6 {[%clk 0:04:58.6]} 2. d4 {[%clk 0:04:54.3]}
2... d5 {[%clk 0:04:57.6]} 3. Nc3 {[%clk 0:04:51.5]} 3... Bb4 {[%clk 0:04:56]}
4. e5 {[%clk 0:04:47]} 4... c5 {[%clk 0:04:54.9]} 5. Bd2 {[%clk 0:04:42.8]} 5...
Nc6 {[%clk 0:04:53.3]} 6. Nb5 {[%clk 0:04:34.4]} 6... Bxd2+ {[%clk 0:04:51.1]}
7. Qxd2 {[%clk 0:04:30.8]} 7... Nxd4 {[%clk 0:04:51]} 8. Nxd4 {[%clk 0:04:28]}
8... cxd4 {[%clk 0:04:49.8]} 9. Qxd4 {[%clk 0:04:26]} 9... Ne7 {[%clk
0:04:48.6]} 10. Nf3 {[%clk 0:04:20.7]} 10... Nc6 {[%clk 0:04:47.3]} 11. Bb5
{[%clk 0:04:15.6]} 11... Bd7 {[%clk 0:04:45.7]} 12. Bxc6 {[%clk 0:04:09]} 12...
bxc6 {[%clk 0:04:44.6]} 13. O-O {[%clk 0:04:03.1]} 13... O-O {[%clk 0:04:42.9]}
14. h4 {[%clk 0:03:51.1]} 14... Qc7 {[%clk 0:04:40.2]} 15. b4 {[%clk 0:03:35.6]}
15... f6 {[%clk 0:04:35.5]} 16. exf6 {[%clk 0:03:26.9]} 16... Rxf6 {[%clk
0:04:33.4]} 17. Ne5 {[%clk 0:03:14.7]} 17... Be8 {[%clk 0:04:31.4]} 18. Rfe1
{[%clk 0:03:02.4]} 18... Bg6 {[%clk 0:04:28.1]} 19. c3 {[%clk 0:02:44.2]} 19...
Raf8 {[%clk 0:04:22.3]} 20. Ng4 {[%clk 0:02:30.7]} 20... Rf4 {[%clk 0:04:17.3]}
21. Qd1 {[%clk 0:02:26.3]} 21... Bh5 {[%clk 0:04:13.1]} 22. f3 {[%clk
0:02:13.6]} 22... Qe7 {[%clk 0:04:03.5]} 23. Re5 {[%clk 0:01:55.3]} 23... Bxg4
{[%clk 0:03:59.8]} 24. fxg4 {[%clk 0:01:42.7]} 24... Qxh4 {[%clk 0:03:57.2]} 25.
Rxe6 {[%clk 0:01:29.3]} 25... Rxg4 {[%clk 0:03:40]} 26. Re2 {[%clk 0:01:00.5]}
26... h5 {[%clk 0:03:11.3]} 27. Qd2 {[%clk 0:00:49.7]} 27... Qf6 {[%clk
0:03:07.5]} 28. Qc2 {[%clk 0:00:36.4]} 28... Rg3 {[%clk 0:03:03.8]} 29. Rf2
{[%clk 0:00:26.4]} 29... Qxf2+ {[%clk 0:03:00]} 30. Qxf2 {[%clk 0:00:22.4]}
30... Rxf2 {[%clk 0:02:58.2]} 31. Kxf2 {[%clk 0:00:19.9]} 31... Rxc3 {[%clk
0:02:57.5]} 32. Rb1 {[%clk 0:00:14.9]} 32... Rc2+ {[%clk 0:02:55.8]} 33. Kf3
{[%clk 0:00:12]} 33... Rxa2 {[%clk 0:02:54.6]} 34. b5 {[%clk 0:00:09.2]} 34...
c5 {[%clk 0:02:53.7]} 35. Rc1 {[%clk 0:00:05.3]} 35... c4 {[%clk 0:02:52.1]} 36.
Rd1 {[%clk 0:00:03]} 36... Ra3+ {[%clk 0:02:49.9]} 0-1

[Event "Live Chess"]
[Site "Chess.com"]
[Date "2023.05.21"]
[Round "-"]
[White "WelshTiger"]
[Black "Denz14"]
[Result "1-0"]
[WhiteElo "2349"]
[BlackElo "1046"]
[TimeControl "300"]
[EndTime "1:53:31 PDT"]
[Termination "WelshTiger won by resignation"]

1. e4 {[%clk 0:04:58.8]} 1... d5 {[%clk 0:04:57.5]} 2. exd5 {[%clk 0:04:57.2]}
2... Qxd5 {[%clk 0:04:57.4]} 3. Nc3 {[%clk 0:04:56.4]} 3... Qd8 {[%clk
0:04:56.6]} 4. Be2 {[%clk 0:04:54.3]} 4... Nf6 {[%clk 0:04:56.5]} 5. Nf3 {[%clk
0:04:52.8]} 5... Bg4 {[%clk 0:04:54.9]} 6. h3 {[%clk 0:04:51.5]} 6... Bxf3
{[%clk 0:04:53.8]} 7. Bxf3 {[%clk 0:04:51]} 7... c6 {[%clk 0:04:53.7]} 8. d3
{[%clk 0:04:43.8]} 8... e6 {[%clk 0:04:52.4]} 9. O-O {[%clk 0:04:43]} 9... Nbd7
{[%clk 0:04:49]} 10. d4 {[%clk 0:04:41.4]} 10... Bd6 {[%clk 0:04:43.6]} 11. Re1
{[%clk 0:04:40.5]} 11... O-O {[%clk 0:04:37.6]} 12. Qe2 {[%clk 0:04:36.3]} 12...
Bb8 {[%clk 0:04:34.6]} 13. g3 {[%clk 0:04:33.7]} 13... Qc7 {[%clk 0:04:23.6]}
14. Bf4 {[%clk 0:04:31.5]} 14... Qc8 {[%clk 0:04:22]} 15. Bg5 {[%clk 0:04:24.7]}
15... h6 {[%clk 0:04:15.3]} 16. Bxf6 {[%clk 0:04:19.9]} 16... Nxf6 {[%clk
0:04:11.9]} 17. Ne4 {[%clk 0:04:18.6]} 17... Qd8 {[%clk 0:04:07.3]} 18. Rad1
{[%clk 0:04:15.5]} 18... Nd5 {[%clk 0:04:03.7]} 19. c4 {[%clk 0:04:11.9]} 19...
Nf6 {[%clk 0:03:50.9]} 20. Nc5 {[%clk 0:04:11]} 20... Qe7 {[%clk 0:03:38.3]} 21.
b4 {[%clk 0:03:55.7]} 21... Bd6 {[%clk 0:03:33.3]} 22. a3 {[%clk 0:03:53.3]}
22... Bxc5 {[%clk 0:03:32]} 23. dxc5 {[%clk 0:03:49.8]} 23... Rfc8 {[%clk
0:03:30.6]} 24. Rd6 {[%clk 0:03:43.2]} 24... Rd8 {[%clk 0:03:28.5]} 25. Red1
{[%clk 0:03:42.3]} 25... Ne8 {[%clk 0:03:20.6]} 26. Qd3 {[%clk 0:03:16.7]} 26...
Nxd6 {[%clk 0:03:18]} 27. cxd6 {[%clk 0:03:16.6]} 27... Qd7 {[%clk 0:03:05.9]}
28. c5 {[%clk 0:03:15.5]} 28... b6 {[%clk 0:02:59.1]} 29. Qe4 {[%clk 0:03:10.7]}
29... Rac8 {[%clk 0:02:56.4]} 30. Rd2 {[%clk 0:03:06.2]} 30... f5 {[%clk
0:02:46.9]} 31. Qd4 {[%clk 0:02:59.4]} 31... b5 {[%clk 0:02:37.6]} 32. Bd1
{[%clk 0:02:56]} 32... Kf7 {[%clk 0:02:32.3]} 33. Bb3 {[%clk 0:02:55.1]} 33...
a5 {[%clk 0:02:09.7]} 34. Re2 {[%clk 0:02:53.7]} 34... Re8 {[%clk 0:02:01.1]}
35. Qe5 {[%clk 0:02:52.7]} 35... a4 {[%clk 0:01:53.5]} 36. Qxf5+ {[%clk
0:02:47.1]} 36... Kg8 {[%clk 0:01:45.2]} 37. Bxe6+ {[%clk 0:02:46.2]} 1-0